bitfinex/quotes_ETHUSD_20240701
["timestamp","ask_amount","ask_price","bid_price","bid_amount"]
[1719796360185,2.86881,3485.8,3485.2,2.886711]
[1719796360346,2.86904,3485.5,3485.2,2.886711]
[1719796360545,3.0,3486.0,3485.3,0.05737649]
[1719796360748,2.86919,3485.4,3484.1,1.738]
[1719796360956,2.86921,3485.3,3485.1,1.149168]
[1719796361285,2.86924,3485.3,3485.1,1.149168]
[1719796361454,2.86913,3485.4,3485.1,1.149168]
[1719796361637,2.86899,3485.6,3485.2,0.05738087]
[1719796361842,3.0,3485.5,3485.2,0.05738087]
[1719796362081,5.86879,3485.8,3485.2,0.05738087]
[1719796362280,2.86887,3485.7,3485.1,1.149168]
[1719796362578,3.0,3485.6,3485.1,1.149168]
[1719796362954,3.0,3485.6,3485.2,0.05737652]
[1719796363487,3.0,3485.6,3485.1,1.149168]
[1719796363488,2.735,3487.1,3485.3,0.05737646]
[1719796363652,2.86877,3485.9,3485.1,2.887168]
[1719796364065,2.735,3486.5,3485.1,1.149168]
[1719796364304,2.86917,3485.4,3485.1,1.149168]
[1719796364598,2.86884,3485.8,3485.1,1.149168]
[1719796364803,2.735,3486.5,3485.2,0.05737532]
[1719796364804,3.0,3485.7,3485.2,0.05737532]
[1719796364967,3.0,3486.4,3485.2,0.05737532]
[1719796365315,2.86821,3486.5,3485.2,0.05737532]
[1719796365474,2.86846,3486.2,3485.2,0.05737532]
[1719796366203,2.86897,3485.6,3485.1,2.887168]
[1719796366350,2.86897,3485.6,3485.2,0.05737527]
[1719796366552,2.86869,3485.9,3485.2,1.795378]
[1719796366793,2.86877,3485.9,3484.5,1.49841767]
[1719796366996,0.75,3490.2,3484.5,1.49841767]
[1719796366997,7.1428,3490.2,3485.9,2.86869]
[1719796369664,2.8659,3489.3,3487.7,0.58089611]
[1719796369865,2.8659,3489.3,3487.4,1.99737413]
[1719796369866,0.28659,3489.3,3487.4,1.99737413]
[1719796370176,0.005,3490.0,3487.0,0.58027418]
[1719796370177,2.86615,3489.0,3487.0,0.58027418]
[1719796370375,2.86615,3489.0,3487.1,0.99807891]
[1719796370611,3.0,3488.9,3487.2,2.49512701]
[1719796370817,2.8668,3488.3,3487.1,1.738]
[1719796371022,10.01164,3489.1,3486.7,0.58027418]
[1719796371023,3.0,3488.2,3486.7,0.58027418]
[1719796371214,3.41633,3488.8,3486.5,3.44896418]
[1719796371419,3.41633,3488.8,3486.6,3.07593518]
[1719796371420,3.641633,3488.7,3486.6,3.07593518]
[1719796371577,3.0,3488.7,3486.7,3.07593518]
[1719796371777,3.0,3489.0,3487.4,2.0274]
[1719796371978,3.0,3489.0,3487.5,0.0573331]
[1719796372737,2.74,3490.0,3487.5,0.0573331]
[1719796372738,7.1833,3489.9,3487.5,0.0573331]
[1719796372878,7.1833,3489.9,3487.4,2.0274]
[1719796372879,2.86597,3489.3,3487.7,2.0274]
[1719796373212,2.86597,3489.3,3487.7,1.738]
[1719796373422,0.71883,3489.8,3487.8,0.05733111]
[1719796373576,3.58435,3489.8,3487.2,1.738]
[1719796373777,2.86582,3489.5,3487.3,1.738]
[1719796374021,3.286582,3489.4,3487.3,1.738]
[1719796374221,3.286582,3489.4,3487.8,0.2894]
[1719796374222,3.0,3489.4,3487.8,0.2894]
[1719796374515,2.86576,3489.5,3487.8,2.0274]
[1719796374725,2.86576,3489.5,3487.8,1.738]
[1719796374895,3.586576,3489.4,3487.8,1.738]
[1719796375095,2.86592,3489.3,3487.8,1.738]
[1719796375272,2.86592,3489.3,3486.8,1.738]
[1719796375273,3.0,3489.2,3486.8,1.738]
[1719796375881,6.452396,3489.4,3486.8,1.738]
[1719796376317,0.71883,3489.8,3487.6,2.0274]
[1719796376521,0.71883,3489.8,3487.7,0.05732181]
[1719796376691,0.005,3490.0,3488.4,4.60456]
[1719796376903,0.005,3490.0,3488.3,3.0]
[1719796376904,0.005,3490.0,3488.8,1.738]
[1719796377232,0.005,3490.0,3489.6,2.0274]
[1719796377593,0.005,3490.0,3489.7,0.05729287]
[1719796377938,0.005,3490.0,3489.6,1.738]
[1719796378293,0.005,3490.0,3489.3,4.147506]
[1719796378294,0.005,3490.0,3489.9,2.0274]
[1719796378702,0.005,3490.0,3489.9,4.89281]
[1719796379200,0.1220259,3491.6,3489.9,1.738]
[1719796379448,7.4765,3492.3,3490.3,1.738]
[1719796379449,4.4411159,3492.3,3490.3,1.738]
[1719796379760,4.4411159,3492.3,3489.4,0.75]
[1719796379761,2.735,3493.4,3490.6,1.738]
[1719796379918,2.735,3493.4,3491.0,1.738]
[1719796379919,0.122026,3493.1,3491.0,1.738]
[1719796380097,0.089026,3493.1,3490.6,1.738]
[1719796380300,0.089026,3493.1,3490.0,2.735]
[1719796380301,2.86287,3493.0,3490.1,0.2894]
[1719796380534,2.735,3492.6,3489.4,3.0]
[1719796380703,2.86347,3492.3,3489.4,3.0]
[1719796380896,2.86358,3492.2,3489.4,3.75]
[1719796381150,0.2735,3492.5,3489.5,1.738]
[1719796381348,2.86344,3492.3,3490.4,0.2894]
[1719796381642,2.86384,3491.9,3489.4,3.0]
[1719796381808,3.0,3491.8,3489.8,2.86542]
[1719796381992,3.0,3492.1,3489.9,5.92265885]
[1719796382304,7.197,3493.5,3491.0,2.0274]
[1719796382510,1.007143,3493.4,3491.0,2.0274]
[1719796382695,2.86285,3493.1,3491.0,2.0274]
[1719796382896,2.86281,3493.1,3491.1,0.0572697]
[1719796383151,2.86262,3493.3,3491.1,0.0572697]
[1719796383328,2.86304,3492.8,3491.0,2.0274]
[1719796383526,2.86266,3493.3,3491.0,2.0274]
[1719796383701,3.9694503,3493.2,3491.0,2.0274]
[1719796384045,1.1066803,3493.2,3491.0,2.0274]
[1719796384250,1.1066803,3493.2,3491.1,1.738]
[1719796384593,2.86301,3492.9,3491.1,1.738]
[1719796384829,3.0,3492.8,3491.1,1.738]
[1719796385051,1.1066803,3493.2,3491.1,1.738]
[1719796385052,3.0,3492.9,3491.1,1.738]
[1719796385261,2.86203,3494.1,3491.1,1.738]
[1719796385408,0.7209,3493.4,3491.2,0.05725717]
[1719796385727,0.7209,3493.4,3491.0,2.0274]
[1719796385728,2.86352,3492.2,3491.0,2.0274]
[1719796385907,2.735,3493.3,3490.8,0.05727511]
[1719796386112,2.86356,3492.2,3490.7,0.2894]
[1719796386425,0.7209,3493.4,3489.7,7.335]
[1719796386426,2.86412,3491.5,3489.7,7.335]
[1719796386760,5.59874,3492.0,3489.8,1.738]
[1719796386987,2.86484,3490.6,3489.4,0.2894]
[1719796387130,2.86484,3490.6,3488.0,7.335]
[1719796387131,2.86549,3489.8,3488.0,7.335]
[1719796387312,2.86574,3489.5,3488.0,7.335]
[1719796387812,2.86558,3489.7,3488.4,0.2894]
[1719796388172,2.86558,3489.7,3488.8,2.0274]
[1719796388460,2.86558,3489.7,3488.5,1.20509914]
[1719796388461,2.86551,3489.8,3489.0,2.0274]
[1719796388610,2.86528,3490.1,3489.0,2.0274]
[1719796388809,2.86543,3489.9,3489.0,2.0274]
[1719796389020,6.9931,3490.2,3488.6,0.2894]
[1719796389220,6.9931,3490.2,3488.7,0.05732056]
[1719796389451,2.86572,3489.6,3488.6,0.2894]
[1719796389613,2.86506,3490.4,3488.7,0.05731263]
[1719796389808,2.86567,3489.6,3488.8,0.05731201]
[1719796390009,3.0,3490.3,3488.9,0.05731762]
[1719796390010,2.86584,3489.4,3488.9,0.05731762]
[1719796390216,2.86584,3489.4,3488.7,0.05731642]
[1719796390217,2.86602,3489.2,3488.7,0.05731642]
[1719796390441,2.86592,3489.3,3488.7,0.05731642]
[1719796390751,2.86566,3489.6,3488.8,0.05731792]
[1719796390752,2.86575,3489.5,3488.8,0.05731792]
[1719796390911,2.86599,3489.2,3488.6,0.2894]
[1719796391325,2.86599,3489.2,3488.4,0.2894]
[1719796391542,2.8659,3489.3,3488.5,0.0573192]
[1719796391744,2.735,3490.8,3488.4,2.0274]
[1719796391745,3.0,3490.5,3488.4,2.0274]
[1719796391971,2.8658,3489.5,3488.4,2.0274]
[1719796392473,2.86624,3488.9,3488.1,2.0274]
[1719796392771,2.86624,3488.9,3487.5,6.8194]
[1719796392772,2.86575,3489.5,3487.8,1.147986]
[1719796392972,2.86575,3489.5,3487.5,6.8194]
[1719796392973,2.86655,3488.6,3487.5,6.8194]
[1719796393141,2.86672,3488.3,3487.5,6.8194]
[1719796393340,2.86672,3488.3,3487.3,2.886162]
[1719796393540,2.86654,3488.6,3487.4,1.79533285]
[1719796393879,0.55,3490.8,3487.4,1.79533285]
[1719796393880,2.86387,3491.8,3489.1,3.0]
[1719796394088,2.86387,3491.8,3488.4,4.328]
[1719796394089,2.86173,3494.4,3491.5,1.0289]
[1719796394286,2.86173,3494.4,3491.5,0.2789]
[1719796394287,2.86272,3493.2,3491.5,0.2789]
[1719796394440,2.86272,3493.2,3491.6,1.724]
[1719796394841,2.86272,3493.2,3490.6,1.724]
[1719796394842,0.286272,3493.2,3490.6,1.724]
[1719796395041,2.86367,3492.1,3490.7,0.05726549]
[1719796395280,2.86367,3492.1,3490.5,5.0439]
[1719796395437,2.8629,3493.0,3490.6,1.78126894]
[1719796395983,2.735,3494.2,3491.2,1.724]
[1719796396284,3.082,3495.0,3491.8,1.724]
[1719796396285,2.86266,3493.3,3491.8,1.724]
[1719796396495,2.86247,3493.5,3491.8,1.724]
[1719796396786,2.86205,3494.0,3491.8,1.724]
[1719796396989,7.0909,3493.7,3491.8,1.724]
[1719796397187,2.86361,3492.1,3491.8,1.724]
[1719796397486,2.86264,3493.3,3490.6,1.724]
[1719796397487,2.86377,3491.9,3490.6,1.724]
[1719796397800,2.86356,3492.2,3490.7,0.05727031]
[1719796397989,2.86315,3492.7,3490.6,1.724]
[1719796398154,2.86409,3491.6,3490.6,1.724]
[1719796398585,2.8638,3491.9,3490.6,1.724]
[1719796398889,2.86385,3491.8,3490.6,1.724]
[1719796399089,2.86385,3491.8,3490.7,0.05727397]
[1719796399296,3.286315,3492.6,3490.8,0.0572734]
[1719796399588,2.86397,3491.7,3490.6,1.724]
[1719796399801,3.0,3492.4,3490.6,1.724]
[1719796399947,2.86373,3492.0,3490.6,1.724]
[1719796400144,2.86342,3492.4,3490.6,1.724]
[1719796400145,2.86424,3491.4,3490.6,1.724]
[1719796400495,2.86455,3491.0,3490.7,1.724]
[1719796400693,3.0,3492.4,3490.7,1.724]
[1719796400694,2.86291,3493.0,3490.7,1.724]
[1719796400988,2.86409,3491.6,3490.8,0.05727482]
[1719796401169,2.86424,3491.4,3490.7,1.724]
[1719796401373,2.864,3491.7,3489.7,1.724]
[1719796401573,2.86434,3491.2,3489.7,1.724]
[1719796402358,5.86345,3492.3,3489.7,1.724]
[1719796402359,2.86468,3490.8,3489.7,1.724]
[1719796402590,5.86345,3492.3,3489.7,1.724]
[1719796402591,5.72959,3490.7,3489.7,1.724]
[1719796402793,2.86509,3490.3,3489.7,1.724]
[1719796403150,2.86517,3490.2,3489.7,1.724]
[1719796403669,2.86517,3490.2,3489.8,1.724]
[1719796403875,2.86517,3490.2,3488.8,10.7799]
[1719796403876,2.86558,3489.7,3488.9,1.724]
[1719796404098,3.0,3491.6,3489.3,2.0134]
[1719796404099,3.0,3491.0,3489.3,2.0134]
[1719796404242,0.85,3491.5,3489.3,0.2894]
[1719796404547,2.86582,3489.4,3489.3,0.2894]
[1719796405203,2.86598,3489.3,3489.0,2.0134]
[1719796405488,2.86582,3489.4,3488.1,5.0449]
[1719796405489,2.86609,3489.1,3488.8,0.2894]
[1719796406059,2.86587,3489.4,3488.7,0.2894]
[1719796406264,2.86643,3488.7,3487.6,0.2894]
[1719796406459,2.86643,3488.7,3488.4,2.0134]
[1719796406848,2.86649,3488.6,3488.4,2.0134]
[1719796407052,2.86656,3488.5,3488.4,2.0134]
[1719796407291,2.86656,3488.5,3488.4,0.2894]
[1719796407492,3.0,3489.7,3488.3,2.0134]
[1719796407493,2.8659,3489.3,3488.3,2.0134]
[1719796407725,3.0,3489.7,3488.3,2.0134]
[1719796407726,2.86646,3488.7,3488.3,2.0134]
[1719796407995,2.711,3491.3,3488.4,0.05732339]
[1719796408196,2.86518,3490.2,3488.4,0.05732339]
[1719796408503,7.79306,3490.9,3488.4,0.05732339]
[1719796408504,2.86509,3490.3,3488.4,0.05732339]
[1719796408662,2.86509,3490.3,3488.6,0.2894]
[1719796409012,2.86531,3490.1,3488.7,0.0573022]
[1719796409396,2.86551,3489.8,3488.7,0.0573022]
[1719796410050,2.86551,3489.8,3488.1,3.0]
[1719796410051,0.573085,3489.7,3488.1,0.2894]
[1719796410279,2.86617,3489.0,3488.6,1.724]
[1719796410603,2.86598,3489.2,3488.7,0.05731919]
[1719796410934,2.86598,3489.2,3488.6,1.724]
[1719796411095,2.86598,3489.2,3488.8,1.724]
[1719796411913,2.866,3489.2,3488.8,1.724]
[1719796412337,2.86664,3488.4,3488.3,0.2894]
[1719796412614,2.86656,3488.5,3488.3,0.2894]
[1719796413187,2.86656,3488.5,3487.6,0.2894]
[1719796413429,2.86652,3488.6,3487.6,0.2894]
[1719796413824,2.86652,3488.6,3487.7,0.05732666]
[1719796414140,2.86652,3488.6,3487.6,0.2894]
[1719796414141,2.86715,3487.8,3487.6,0.2894]
[1719796414436,2.86623,3488.9,3487.4,1.148152]
[1719796414437,2.86721,3487.7,3487.4,1.148152]
[1719796415089,2.8665,3488.6,3487.4,1.148152]
[1719796415399,2.86777,3487.1,3486.3,0.05734199]
[1719796415597,2.86777,3487.1,3486.2,1.148465]
[1719796415802,2.86715,3487.8,3486.2,1.148465]
[1719796415803,2.8678,3487.0,3486.2,1.148465]
[1719796416205,2.8678,3487.0,3486.3,0.2894]
[1719796417437,2.86764,3487.2,3486.3,0.2894]
[1719796417438,2.86769,3487.2,3486.3,0.2894]
[1719796417638,2.86765,3487.2,3486.3,0.2894]
[1719796417787,2.86796,3486.8,3486.3,0.2894]
[1719796417994,2.86804,3486.7,3486.3,0.2894]
[1719796418294,2.86796,3486.8,3486.3,0.2894]
[1719796418635,3.0,3487.9,3486.4,0.05735885]
[1719796418636,2.86753,3487.4,3486.4,0.05735885]
[1719796418834,2.86759,3487.3,3486.4,0.05735885]
[1719796419194,2.86764,3487.2,3486.4,0.05735885]
[1719796419814,2.86764,3487.2,3486.3,0.2894]
[1719796419815,2.86784,3487.0,3486.3,0.2894]
[1719796420327,2.86731,3487.6,3486.4,0.05735412]
[1719796420629,2.86741,3487.5,3486.4,0.05735412]
[1719796420944,2.86757,3487.3,3486.4,0.05735412]
[1719796421143,2.86738,3487.5,3486.4,0.05735412]
[1719796421323,5.86731,3487.6,3486.4,0.05735412]
[1719796421493,2.86752,3487.4,3486.4,0.05735412]
[1719796421930,9.6181,3488.8,3486.3,0.2894]
[1719796422243,5.06,3490.3,3486.7,0.2894]
[1719796422244,2.86628,3488.9,3486.7,0.2894]
[1719796422394,2.86603,3489.2,3486.9,0.2894]
[1719796422596,2.86665,3488.4,3487.0,0.05733694]
[1719796422826,2.86699,3488.0,3486.9,0.2894]
[1719796423136,2.8671,3487.9,3486.9,0.2894]
[1719796423300,2.8671,3487.9,3486.6,5.0449]
[1719796423301,2.8671,3487.9,3486.7,0.2894]
[1719796424139,2.86715,3487.8,3486.7,0.2894]
[1719796424446,2.86661,3488.5,3486.8,0.05733993]
[1719796424593,2.86622,3489.0,3486.7,0.2894]
[1719796424594,2.86706,3487.9,3486.7,0.2894]
[1719796424993,2.86723,3487.7,3486.7,0.2894]
[1719796425194,2.711,3489.3,3486.6,5.0449]
[1719796425434,2.711,3489.3,3486.3,0.2894]
[1719796425435,2.86748,3487.4,3486.3,0.2894]
[1719796425958,2.86751,3487.4,3486.3,0.2894]
[1719796426108,2.86758,3487.3,3486.3,0.2894]
[1719796426846,2.86763,3487.2,3486.3,0.2894]
[1719796427149,2.86777,3487.1,3486.3,0.2894]
[1719796427356,2.86778,3487.1,3486.3,0.2894]
[1719796427643,2.86785,3487.0,3486.3,0.05736027]
[1719796427944,2.86765,3487.2,3486.2,1.148465]
[1719796428140,2.86765,3487.2,3486.3,0.05735489]
[1719796428635,2.8673,3487.6,3486.3,0.05735489]
[1719796428949,2.86715,3487.8,3486.3,0.05735489]
[1719796429657,5.86682,3488.2,3486.3,0.05735489]
[1719796429812,2.86673,3488.3,3486.5,0.2894]
[1719796430001,2.86673,3488.3,3486.6,0.05733785]
[1719796430360,1.00307689,3488.9,3486.6,0.05733785]
[1719796430361,2.86682,3488.2,3486.6,0.05733785]
[1719796430707,3.86934689,3488.9,3486.5,0.2894]
[1719796430708,2.86698,3488.0,3486.5,0.2894]
[1719796430906,2.86706,3487.9,3486.5,0.2894]
[1719796431218,2.86685,3488.2,3486.5,0.2894]
[1719796431423,2.86737,3487.6,3486.5,0.2894]
[1719796431624,2.86737,3487.6,3486.3,0.2894]
[1719796431625,2.86785,3487.0,3486.3,0.2894]
[1719796431951,2.86698,3488.0,3486.3,0.2894]
[1719796432116,2.86793,3486.9,3486.3,0.2894]
[1719796432317,2.86796,3486.8,3486.3,0.2894]
[1719796432669,2.86801,3486.8,3486.2,1.148465]
[1719796433332,3.0,3487.7,3486.3,0.34675721]
[1719796433333,3.0,3487.3,3486.3,0.34675721]
[1719796433538,2.86756,3487.3,3486.3,0.2894]
[1719796433736,2.86739,3487.5,3486.4,0.05735256]
[1719796433915,5.86754,3487.4,3486.4,0.05735256]
[1719796434113,2.86772,3487.1,3486.3,0.2894]
[1719796434314,2.86763,3487.2,3486.3,0.2894]
[1719796434529,2.86773,3487.1,3486.3,0.2894]
[1719796434741,2.86736,3487.6,3486.4,0.05735491]
[1719796434941,2.86753,3487.4,3486.4,0.05735491]
[1719796435145,2.86729,3487.7,3486.4,0.05735491]
[1719796435373,2.86757,3487.3,3486.4,0.05735491]
[1719796435698,2.8677,3487.2,3486.4,0.05735491]
[1719796435989,2.8677,3487.2,3485.5,1.724]
[1719796435990,2.86801,3486.8,3485.6,0.2894]
[1719796436196,3.0,3487.1,3485.6,0.2894]
[1719796436394,2.86832,3486.4,3485.7,1.148465]
[1719796436597,2.86837,3486.3,3485.8,0.05736861]
[1719796436744,2.86837,3486.3,3485.6,0.2894]
[1719796436947,2.86808,3486.7,3485.6,1.437865]
[1719796437150,2.86855,3486.1,3485.7,0.05736863]
[1719796437394,2.86855,3486.1,3484.4,3.0]
[1719796437395,2.86894,3485.7,3483.9,3.0]
[1719796437710,2.86808,3486.7,3485.5,0.2894]
[1719796437711,2.86824,3486.5,3485.5,0.2894]
[1719796437864,3.0,3487.1,3485.5,0.2894]
[1719796438051,3.0,3487.1,3485.6,0.05736507]
[1719796438248,3.0,3487.1,3485.5,0.2894]
[1719796438249,2.86813,3486.6,3485.5,0.2894]
[1719796438497,2.86827,3486.5,3485.5,0.2894]
[1719796438663,2.8683,3486.4,3485.4,0.2894]
[1719796438862,3.0,3487.1,3485.4,0.2894]
[1719796438863,2.86855,3486.1,3485.4,0.2894]
[1719796439069,3.0,3487.1,3484.5,1.724]
[1719796439070,2.86875,3485.9,3484.6,0.2894]
[1719796439394,2.8674,3487.5,3484.6,0.2894]
[1719796439395,0.286685,3488.1,3484.6,0.2894]
[1719796439603,2.711,3488.5,3485.1,0.2894]
[1719796439890,2.8681,3486.7,3485.2,0.05736316]
[1719796440116,2.86851,3486.2,3485.1,0.2894]
[1719796440263,9.67088,3487.4,3485.1,0.2894]
[1719796440264,2.86814,3486.6,3485.1,0.2894]
[1719796440464,2.86814,3486.6,3484.6,1.724]
[1719796440465,2.86829,3486.4,3484.7,0.2894]
[1719796440666,2.86837,3486.3,3484.7,0.2894]
[1719796441393,2.86853,3486.1,3484.7,0.2894]
[1719796441592,2.86778,3487.1,3484.5,5.0449]
[1719796441593,2.86788,3486.9,3484.6,0.2894]
[1719796441823,2.86884,3485.8,3484.6,0.2894]
[1719796442402,2.86842,3486.3,3484.6,0.2894]
[1719796442557,0.573566,3486.8,3484.6,0.2894]
[1719796442558,2.86903,3485.5,3484.6,0.2894]
[1719796443102,2.86903,3485.5,3484.7,0.2894]
[1719796443253,9.932,3486.1,3484.7,0.2894]
[1719796443254,2.86938,3485.1,3484.7,0.2894]
[1719796443751,3.0,3485.7,3484.7,0.2894]
[1719796443954,3.0,3485.6,3484.1,0.2894]
[1719796444164,3.9932,3486.0,3484.1,0.2894]
[1719796444650,0.55,3485.9,3484.1,0.2894]
[1719796444854,1.41862,3485.8,3484.2,0.05739858]
[1719796445160,1.41862,3485.8,3483.7,5.0449]
[1719796445501,1.41862,3485.8,3484.0,0.2894]
[1719796445791,1.41862,3485.8,3484.1,0.05739217]
[1719796446500,1.41862,3485.8,3484.0,0.2894]
[1719796446697,0.49186208,3485.7,3484.0,0.2894]
[1719796447033,0.49186208,3485.7,3482.6,0.58067551]
[1719796447034,2.711,3484.7,3482.6,0.58067551]
[1719796447162,0.05000008,3484.6,3481.7,8.0449]
[1719796447363,3.60000008,3484.6,3482.3,0.29988719]
[1719796447595,0.63110001,3484.5,3482.4,0.05742254]
[1719796447803,0.05000008,3484.4,3482.4,0.05742254]
[1719796448996,0.05000008,3484.4,3482.1,5.0116]
[1719796449176,0.05000008,3484.9,3482.1,3.2876]
[1719796449374,0.55,3484.8,3482.3,0.2876]
[1719796449613,0.41000009,3484.7,3482.4,0.05741611]
[1719796449813,0.41000009,3484.7,3482.3,0.2876]
[1719796450522,0.05000008,3484.7,3482.6,0.2876]
[1719796450964,7.0468,3485.1,3482.7,0.05740688]
[1719796450965,0.05000008,3485.0,3482.7,0.05740688]
[1719796451297,0.05000008,3485.0,3482.6,0.2876]
[1719796451802,0.05000008,3485.0,3482.8,0.2876]
[1719796452614,0.05000008,3485.0,3483.0,0.2876]
[1719796452768,7.4051,3485.8,3483.2,2.0116]
[1719796453109,0.05000008,3485.7,3483.2,2.59383218]
[1719796453311,0.05000008,3485.7,3483.5,5.0449]
[1719796453491,0.05000008,3485.7,3483.6,2.49738298]
[1719796453665,0.05000008,3485.7,3483.7,2.49738298]
[1719796453862,0.05000008,3485.7,3483.8,0.3449901]
[1719796454067,0.05000008,3485.7,3484.0,0.2876]
[1719796454489,2.711,3487.2,3484.2,2.0116]
[1719796454490,6.7992,3486.6,3484.2,2.0116]
[1719796454703,0.049977,3487.8,3484.1,5.34713103]
[1719796454704,6.7992,3487.3,3484.7,5.3325]
[1719796454901,6.7992,3487.3,3484.7,6.68077115]
[1719796454902,0.05000008,3487.2,3484.7,6.68077115]
[1719796455211,0.05000008,3487.2,3485.1,3.2876]
[1719796455558,0.05000008,3487.2,3485.5,0.2876]
[1719796455826,0.05000008,3488.0,3485.5,0.2876]
[1719796456027,0.68492001,3487.9,3485.7,0.2876]
[1719796456237,0.05000008,3487.8,3485.7,0.2876]
[1719796456607,0.05000008,3487.8,3485.3,1.4977025]
[1719796456809,0.05000008,3487.8,3485.4,0.99853406]
[1719796457129,0.05000008,3487.8,3485.2,0.58223218]
[1719796457130,0.05000008,3487.8,3485.2,2.84412327]
[1719796457295,0.05000008,3487.8,3484.8,1.16446437]
[1719796457296,0.05000008,3487.8,3485.0,6.42635545]
[1719796457493,0.05000008,3487.8,3485.2,0.2876]
[1719796457784,0.05000008,3487.8,3485.4,0.2876]
[1719796457995,0.05000008,3487.8,3485.6,0.2876]
[1719796458206,0.05000008,3488.0,3485.8,0.2876]
[1719796458449,0.05000008,3488.0,3486.0,5.0449]
[1719796458602,0.05000008,3488.0,3486.1,0.34495009]
[1719796458999,0.05000008,3488.0,3486.1,0.2876]
[1719796459211,0.73492009,3488.0,3486.1,0.2876]
[1719796459441,0.73492009,3488.0,3486.2,0.05735357]
[1719796459733,0.05000008,3488.0,3486.3,0.05735331]
[1719796459900,0.05000008,3488.0,3486.3,0.34495331]
[1719796460094,0.05000008,3488.7,3486.3,0.34495331]
[1719796460333,0.05000008,3488.7,3486.4,1.724]
[1719796460555,0.05000008,3488.7,3486.7,0.2876]
[1719796460716,0.78899009,3488.7,3486.7,0.2876]
[1719796461546,0.78899009,3488.7,3486.3,0.2876]
[1719796462651,0.78899009,3488.7,3485.9,0.2876]
[1719796462652,3.78899009,3488.7,3485.9,0.2876]
[1719796462860,1.11288901,3488.6,3485.9,0.2876]
[1719796463015,0.60000008,3488.5,3485.9,0.2876]
[1719796463214,2.711,3487.8,3485.9,0.2876]
[1719796463412,2.711,3487.8,3485.8,1.34512549]
[1719796463413,10.53890008,3487.7,3485.8,1.34512549]
[1719796463642,1.32499001,3487.6,3485.8,1.34512549]
[1719796463867,0.05000008,3487.5,3485.8,1.34512549]
[1719796464015,0.05000008,3487.5,3485.9,0.05736972]
[1719796464457,0.05000008,3487.5,3485.9,0.2876]
[1719796465334,0.05000008,3487.5,3486.0,0.05735759]
[1719796465545,0.47928291,3487.5,3485.8,1.34512549]
[1719796466045,0.47928291,3487.5,3485.9,0.2876]
[1719796466815,0.47928291,3487.5,3485.8,1.34512549]
[1719796467078,7.3965,3487.4,3485.8,1.34512549]
[1719796467375,3.97007737,3487.3,3485.8,1.34512549]
[1719796467530,0.05000008,3487.2,3485.8,1.34512549]
[1719796468191,7.3076,3488.5,3486.3,0.2876]
[1719796468335,0.05000008,3488.4,3486.3,0.2876]
[1719796469076,0.05000008,3488.4,3486.0,1.724]
[1719796469077,0.05000008,3488.4,3486.5,0.2876]
[1719796469375,0.78576009,3488.4,3486.5,0.2876]
[1719796469583,3.78576009,3488.4,3486.3,0.2876]
[1719796470084,3.78576009,3488.4,3485.9,0.2876]
[1719796470286,3.78576009,3488.4,3486.0,0.05735031]
[1719796470437,3.78576009,3488.4,3486.1,0.2876]
[1719796470634,1.10933601,3488.3,3486.1,0.2876]
[1719796470867,0.05000008,3488.2,3486.1,0.2876]
[1719796471458,0.05000008,3488.2,3486.0,0.2876]
[1719796471757,0.05000008,3488.2,3486.1,0.05735693]
[1719796471984,0.05000008,3488.2,3486.0,0.2876]
[1719796472133,0.48950961,3488.1,3486.0,0.2876]
[1719796472335,7.3408,3487.9,3486.0,0.2876]
[1719796472537,0.05000008,3487.8,3486.2,0.2876]
[1719796472733,0.05000008,3487.7,3486.2,0.2876]
[1719796473139,0.05000008,3487.7,3486.3,0.05735918]
[1719796473570,0.05000008,3487.7,3486.3,0.34495918]
[1719796474043,0.05000008,3487.7,3486.4,0.0573553]
[1719796474270,0.05000008,3487.7,3486.3,0.2876]
[1719796474271,1.08908009,3487.7,3486.3,0.2876]
[1719796474474,1.08908009,3487.7,3485.9,0.2876]
[1719796474653,1.08908009,3487.7,3486.4,0.2876]
[1719796474857,0.05000008,3487.7,3486.5,0.05735532]
[1719796475140,0.05000008,3487.7,3486.4,0.2876]
[1719796475784,0.05000008,3487.7,3486.0,0.2876]
[1719796478060,3.027,3491.0,3486.2,0.2876]
[1719796478257,6.9504,3492.8,3489.3,2.711]
[1719796478459,6.9504,3492.8,3487.9,0.2876]
[1719796478460,0.69504,3492.7,3491.5,1.724]
[1719796478706,6.9624,3493.7,3490.9,1.724]
[1719796478864,6.9624,3493.7,3490.3,2.711]
[1719796478865,6.9624,3493.7,3490.4,3.0]
[1719796479063,6.9277,3493.5,3489.8,3.0]
[1719796479261,6.9277,3493.5,3488.8,1.9278084]
[1719796479262,6.9277,3493.5,3489.3,0.75]
[1719796479263,6.9277,3493.3,3489.3,0.75]
[1719796479600,6.9277,3493.3,3489.4,0.2876]
[1719796479753,6.9277,3493.3,3490.0,2.0116]
[1719796479954,6.9277,3493.3,3489.2,3.0]
[1719796479955,6.9277,3493.2,3490.2,0.2876]
[1719796480203,6.9277,3492.9,3490.1,0.08461574]
[1719796480403,11.6437,3492.9,3490.1,0.08461574]
[1719796480706,11.6437,3492.9,3488.5,2.86743053]
[1719796480707,6.9277,3492.3,3490.2,0.08461331]
[1719796481055,6.9277,3492.1,3490.2,0.08461331]
[1719796481382,0.55,3492.2,3490.2,0.08461331]
[1719796481383,6.9277,3491.9,3490.2,0.08461331]
[1719796481585,3.0,3491.8,3490.2,0.08461331]
[1719796482360,6.9277,3491.7,3490.2,0.08461331]